[Event "Live Chess"]
[Site "Chess.com"]
[Date "2023.05.21"]
[Round "-"]
[White "OleksiyJr1"]
[Black "Ferrarifan27"]
[Result "0-1"]
[WhiteElo "1034"]
[BlackElo "2047"]
[TimeControl "300"]
[EndTime "7:53:38 PDT"]
[Termination "Ferrarifan27 won by resignation"]

1. e4 {[%clk 0:04:40.1]} 1... e5 {[%clk 0:04:58.3]} 2. Nf3 {[%clk 0:04:34.4]}
2... Nc6 {[%clk 0:04:56.8]} 3. Nc3 {[%clk 0:04:28.8]} 3... Bc5 {[%clk
0:04:52.2]} 4. Bc4 {[%clk 0:04:27.4]} 4... Nf6 {[%clk 0:04:45.4]} 5. d3 {[%clk
0:04:23.8]} 5... h6 {[%clk 0:04:42.3]} 6. O-O {[%clk 0:04:21.5]} 6... O-O {[%clk
0:04:40.5]} 7. Re1 {[%clk 0:03:47.4]} 7... d6 {[%clk 0:04:36.9]} 8. Be3 {[%clk
0:03:43.4]} 8... Bxe3 {[%clk 0:04:31.8]} 9. Rxe3 {[%clk 0:03:43.3]} 9... Bg4
{[%clk 0:04:30.4]} 10. h3 {[%clk 0:03:41.6]} 10... Bh5 {[%clk 0:04:29.2]} 11.
Re2 {[%clk 0:03:36.6]} 11... Nd4 {[%clk 0:04:26.6]} 12. Re3 {[%clk 0:03:33.5]}
12... Bxf3 {[%clk 0:04:21.4]} 13. gxf3 {[%clk 0:03:32.5]} 13... Nh5 {[%clk
0:04:20.5]} 14. Kf1 {[%clk 0:03:24.2]} 14... Nf4 {[%clk 0:04:19.1]} 15. Nd5
{[%clk 0:03:17.3]} 15... Qh4 {[%clk 0:04:03.8]} 16. Nxf4 {[%clk 0:03:14.2]}
16... exf4 {[%clk 0:04:01.5]} 17. Re1 {[%clk 0:03:12.1]} 17... Qxh3+ {[%clk
0:03:59.1]} 18. Kg1 {[%clk 0:03:11.1]} 18... Nxf3+ {[%clk 0:03:58.3]} 0-1

[Event "Live Chess"]
[Site "Chess.com"]
[Date "2023.05.21"]
[Round "-"]
[White "hturner40"]
[Black "jimwad"]
[Result "1-0"]
[WhiteElo "1795"]
[BlackElo "1226"]
[TimeControl "300"]
[EndTime "7:53:40 PDT"]
[Termination "hturner40 won by resignation"]

1. Nf3 {[%clk 0:04:57.9]} 1... d5 {[%clk 0:04:57.9]} 2. g3 {[%clk 0:04:56]} 2...
Nc6 {[%clk 0:04:56.8]} 3. d4 {[%clk 0:04:53.9]} 3... Nf6 {[%clk 0:04:54.7]} 4.
Bg2 {[%clk 0:04:52.3]} 4... Bg4 {[%clk 0:04:52.4]} 5. Ne5 {[%clk 0:04:50.1]}
5... Nxe5 {[%clk 0:04:50.9]} 6. dxe5 {[%clk 0:04:48.4]} 6... Nd7 {[%clk
0:04:49.5]} 7. Qxd5 {[%clk 0:04:46.3]} 7... c6 {[%clk 0:04:35.5]} 8. Qd4 {[%clk
0:04:30.2]} 8... Bf5 {[%clk 0:04:02.3]} 9. e4 {[%clk 0:04:19.7]} 9... Bg6 {[%clk
0:03:52.4]} 10. h4 {[%clk 0:03:55.2]} 10... e6 {[%clk 0:03:47.5]} 11. h5 {[%clk
0:03:52.8]} 11... Qa5+ {[%clk 0:03:35.4]} 12. Bd2 {[%clk 0:03:45.8]} 12... Qxe5
{[%clk 0:03:33.8]} 13. Qxe5 {[%clk 0:03:38.6]} 13... Nxe5 {[%clk 0:03:32.5]} 14.
hxg6 {[%clk 0:03:37.4]} 14... Nxg6 {[%clk 0:03:31]} 15. Nc3 {[%clk 0:03:28.6]}
15... O-O-O {[%clk 0:03:29.1]} 16. O-O-O {[%clk 0:03:27.2]} 16... Kb8 {[%clk
0:03:26.8]} 17. f4 {[%clk 0:03:21.1]} 17... Bc5 {[%clk 0:03:09.3]} 18. e5 {[%clk
0:03:17.6]} 18... Bf2 {[%clk 0:03:07.1]} 19. Be1 {[%clk 0:03:12.2]} 19... Rxd1+
{[%clk 0:03:01.4]} 20. Kxd1 {[%clk 0:03:00.9]} 20... Rd8+ {[%clk 0:02:56.8]} 21.
Ke2 {[%clk 0:02:59.6]} 21... Bxe1 {[%clk 0:02:54.9]} 22. Rxe1 {[%clk 0:02:54.9]}
22... h6 {[%clk 0:02:52.6]} 23. Rd1 {[%clk 0:02:53.2]} 23... Rxd1 {[%clk
0:02:50.7]} 24. Kxd1 {[%clk 0:02:50.1]} 24... Ne7 {[%clk 0:02:49.6]} 25. Ke2
{[%clk 0:02:43.4]} 25... Nd5 {[%clk 0:02:45.1]} 26. Nxd5 {[%clk 0:02:41.2]}
26... cxd5 {[%clk 0:02:44.1]} 27. Ke3 {[%clk 0:02:39.8]} 27... b6 {[%clk
0:02:42.9]} 28. Kd4 {[%clk 0:02:38.6]} 28... Kc7 {[%clk 0:02:42]} 29. g4 {[%clk
0:02:36.4]} 29... Kc6 {[%clk 0:02:40.2]} 30. f5 {[%clk 0:02:34.2]} 30... a5
{[%clk 0:02:34.6]} 31. c4 {[%clk 0:02:31]} 31... exf5 {[%clk 0:02:27.2]} 32.
cxd5+ {[%clk 0:02:25.8]} 32... Kd7 {[%clk 0:02:26.1]} 33. gxf5 {[%clk
0:02:24.8]} 33... g6 {[%clk 0:02:18.4]} 34. e6+ {[%clk 0:02:18.7]} 34... fxe6
{[%clk 0:02:15.9]} 35. dxe6+ {[%clk 0:02:16.7]} 35... Ke7 {[%clk 0:02:13.7]} 36.
Ke5 {[%clk 0:02:11]} 36... gxf5 {[%clk 0:02:12.1]} 37. Kxf5 {[%clk 0:02:08.8]}
37... h5 {[%clk 0:02:10.9]} 38. Bd5 {[%clk 0:01:57.5]} 38... h4 {[%clk
0:02:09.5]} 39. Kg4 {[%clk 0:01:55.1]} 39... h3 {[%clk 0:02:07.4]} 40. Kxh3
{[%clk 0:01:53.8]} 40... Kd6 {[%clk 0:02:06.5]} 41. Kg4 {[%clk 0:01:52]} 41...
Kxd5 {[%clk 0:02:04.6]} 42. e7 {[%clk 0:01:50.3]} 42... Kc4 {[%clk 0:02:02.6]}
43. e8=Q {[%clk 0:01:48]} 43... b5 {[%clk 0:02:01.9]} 44. Qe3 {[%clk 0:01:45.9]}
44... b4 {[%clk 0:02:00.4]} 45. Qb3+ {[%clk 0:01:44]} 45... Kc5 {[%clk
0:01:58.8]} 46. Kf4 {[%clk 0:01:36.8]} 46... Kb5 {[%clk 0:01:56.2]} 47. a4+
{[%clk 0:01:35.5]} 47... Kc5 {[%clk 0:01:53.4]} 48. Qd3 {[%clk 0:01:34]} 1-0

[Event "Live Chess"]
[Site "Chess.com"]
[Date "2023.05.21"]
[Round "-"]
[White "diana21strabt"]
[Black "Ian-Morley"]
[Result "1-0"]
[WhiteElo "1734"]
[BlackElo "1089"]
[TimeControl "300"]
[EndTime "7:53:41 PDT"]
[Termination "diana21strabt won by resignation"]

1. e4 {[%clk 0:04:57.6]} 1... e5 {[%clk 0:04:58.9]} 2. Nf3 {[%clk 0:04:56.2]}
2... Nc6 {[%clk 0:04:57.6]} 3. d4 {[%clk 0:04:55.2]} 3... exd4 {[%clk
0:04:56.5]} 4. Bc4 {[%clk 0:04:54.4]} 4... Nf6 {[%clk 0:04:53.5]} 5. O-O {[%clk
0:04:53.3]} 5... Be7 {[%clk 0:04:51.2]} 6. e5 {[%clk 0:04:51.7]} 6... Ng8 {[%clk
0:04:48.7]} 7. Nxd4 {[%clk 0:04:48.7]} 7... Nxd4 {[%clk 0:04:47.4]} 8. Qxd4
{[%clk 0:04:47.4]} 8... d6 {[%clk 0:04:45.5]} 9. Nc3 {[%clk 0:04:37.2]} 9... c5
{[%clk 0:04:44.1]} 10. Qf4 {[%clk 0:04:33.2]} 10... f6 {[%clk 0:04:40.3]} 11.
exd6 {[%clk 0:04:28.7]} 11... Qxd6 {[%clk 0:04:35.2]} 12. Re1 {[%clk 0:04:26.4]}
12... Qxf4 {[%clk 0:04:33.9]} 13. Bxf4 {[%clk 0:04:25.2]} 13... g5 {[%clk
0:04:28.7]} 14. Bd6 {[%clk 0:04:22.3]} 14... Kd7 {[%clk 0:04:24]} 15. Bxg8
{[%clk 0:04:13.5]} 15... Rxg8 {[%clk 0:04:23.1]} 16. Bxe7 {[%clk 0:04:10.9]}
16... Kc6 {[%clk 0:04:22.2]} 17. Bxf6 {[%clk 0:04:08.9]} 17... Bf5 {[%clk
0:04:20.6]} 18. h3 {[%clk 0:03:58.7]} 18... Rae8 {[%clk 0:04:08.2]} 19. Rxe8
{[%clk 0:03:55]} 19... Rxe8 {[%clk 0:04:07.3]} 20. Bxg5 {[%clk 0:03:52.9]} 20...
Bxc2 {[%clk 0:04:06]} 21. Rc1 {[%clk 0:03:49.9]} 21... b5 {[%clk 0:04:03.7]} 22.
Rxc2 {[%clk 0:03:46.3]} 22... Re1+ {[%clk 0:04:02.2]} 23. Kh2 {[%clk 0:03:44.4]}
23... Rb1 {[%clk 0:03:10.7]} 24. Ne4 {[%clk 0:03:35.6]} 24... b4 {[%clk
0:03:07.8]} 1-0

[Event "Live Chess"]
[Site "Chess.com"]
[Date "2023.05.21"]
[Round "-"]
[White "bedsdrout"]
[Black "PaulyD81"]
[Result "1-0"]
[WhiteElo "1645"]
[BlackElo "1185"]
[TimeControl "300"]
[EndTime "7:53:55 PDT"]
[Termination "bedsdrout won by checkmate"]

1. e4 {[%clk 0:04:57.5]} 1... d5 {[%clk 0:04:57.4]} 2. exd5 {[%clk 0:04:54.7]}
2... Qxd5 {[%clk 0:04:57.3]} 3. Nc3 {[%clk 0:04:52.9]} 3... Qa5 {[%clk
0:04:56.2]} 4. Nf3 {[%clk 0:04:49.4]} 4... Nf6 {[%clk 0:04:53.8]} 5. d4 {[%clk
0:04:45.9]} 5... Bf5 {[%clk 0:04:47.2]} 6. Bb5+ {[%clk 0:04:42.3]} 6... c6
{[%clk 0:04:41.7]} 7. Bd3 {[%clk 0:04:39.1]} 7... e6 {[%clk 0:04:35.7]} 8. Bxf5
{[%clk 0:04:20]} 8... Qxf5 {[%clk 0:04:22.8]} 9. Nh4 {[%clk 0:04:15.5]} 9... Qg4
{[%clk 0:04:11.2]} 10. f3 {[%clk 0:04:09.5]} 10... Qxh4+ {[%clk 0:04:07.7]} 11.
g3 {[%clk 0:04:06.8]} 11... Qh5 {[%clk 0:04:01.8]} 12. Bf4 {[%clk 0:03:57.8]}
12... Qa5 {[%clk 0:03:50.9]} 13. O-O {[%clk 0:03:47.7]} 13... Be7 {[%clk
0:03:40.3]} 14. a3 {[%clk 0:03:44.8]} 14... O-O {[%clk 0:03:35.8]} 15. b4 {[%clk
0:03:41.6]} 15... Qd8 {[%clk 0:03:27.4]} 16. Ne4 {[%clk 0:03:37.8]} 16... Nxe4
{[%clk 0:03:23.8]} 17. fxe4 {[%clk 0:03:34]} 17... Bd6 {[%clk 0:03:20.7]} 18.
Bxd6 {[%clk 0:03:31.8]} 18... Qxd6 {[%clk 0:03:19.7]} 19. e5 {[%clk 0:03:29.1]}
19... Qd5 {[%clk 0:03:06.6]} 20. c4 {[%clk 0:03:26.3]} 20... Qxc4 {[%clk
0:03:01.8]} 21. Rc1 {[%clk 0:03:20.3]} 21... Qd5 {[%clk 0:02:54.3]} 22. Rf4
{[%clk 0:03:16.1]} 22... Qd7 {[%clk 0:02:46.8]} 23. Rc3 {[%clk 0:03:12.3]} 23...
Qc7 {[%clk 0:02:44.2]} 24. Qh5 {[%clk 0:03:04.4]} 24... g6 {[%clk 0:02:40.2]}
25. Qg5 {[%clk 0:02:50.7]} 25... Nd7 {[%clk 0:02:35.4]} 26. Rh4 {[%clk
0:02:45.3]} 26... f6 {[%clk 0:02:16.3]} 27. Qh6 {[%clk 0:02:42.5]} 27... fxe5
{[%clk 0:02:08.8]} 28. Qxh7# {[%clk 0:02:35.4]} 1-0

[Event "Live Chess"]
[Site "Chess.com"]
[Date "2023.05.21"]
[Round "-"]
[White "whatnot126"]
[Black "davigator"]
[Result "0-1"]
[WhiteElo "2066"]
[BlackElo "2293"]
[TimeControl "300"]
[EndTime "7:53:58 PDT"]
[Termination "davigator won by resignation"]

1. e4 {[%clk 0:04:59.2]} 1... c5 {[%clk 0:04:58.2]} 2. c3 {[%clk 0:04:58.3]}
2... Nf6 {[%clk 0:04:55.8]} 3. e5 {[%clk 0:04:57.4]} 3... Nd5 {[%clk 0:04:54.4]}
4. d4 {[%clk 0:04:56.5]} 4... cxd4 {[%clk 0:04:53.9]} 5. cxd4 {[%clk 0:04:56.4]}
5... d6 {[%clk 0:04:52.9]} 6. exd6 {[%clk 0:04:54.6]} 6... Qxd6 {[%clk
0:04:51.5]} 7. Nf3 {[%clk 0:04:54.2]} 7... Nc6 {[%clk 0:04:49.3]} 8. Nc3 {[%clk
0:04:53.5]} 8... Bg4 {[%clk 0:04:47.6]} 9. Bc4 {[%clk 0:04:52.1]} 9... e6 {[%clk
0:04:44.1]} 10. O-O {[%clk 0:04:49.2]} 10... Be7 {[%clk 0:04:41.9]} 11. h3
{[%clk 0:04:48.1]} 11... Bh5 {[%clk 0:04:40.5]} 12. Bd2 {[%clk 0:04:38.2]} 12...
Nb6 {[%clk 0:04:38.5]} 13. Bb5 {[%clk 0:04:37]} 13... O-O {[%clk 0:04:37.1]} 14.
Bxc6 {[%clk 0:04:35.7]} 14... bxc6 {[%clk 0:04:33]} 15. Ne4 {[%clk 0:04:22.6]}
15... Qd5 {[%clk 0:04:29]} 16. Nc3 {[%clk 0:04:12.7]} 16... Qd8 {[%clk 0:04:26]}
17. Be3 {[%clk 0:04:08.9]} 17... Nc4 {[%clk 0:04:24]} 18. b3 {[%clk 0:04:01.2]}
18... Nxe3 {[%clk 0:04:14.1]} 19. fxe3 {[%clk 0:04:01.1]} 19... c5 {[%clk
0:04:13.1]} 20. Qd3 {[%clk 0:03:52.3]} 20... cxd4 {[%clk 0:04:11.7]} 21. Nxd4
{[%clk 0:03:43.4]} 21... Bg6 {[%clk 0:04:06.4]} 22. Qe2 {[%clk 0:03:32.5]} 22...
Rc8 {[%clk 0:04:04.8]} 23. Rac1 {[%clk 0:03:19.9]} 23... Ba3 {[%clk 0:04:02.8]}
24. Qd2 {[%clk 0:03:05.7]} 24... Bxc1 {[%clk 0:04:00.9]} 25. Rxc1 {[%clk
0:03:05.6]} 25... Qa5 {[%clk 0:03:57.5]} 26. Nde2 {[%clk 0:02:52.1]} 26... Rfd8
{[%clk 0:03:54.8]} 27. Qb2 {[%clk 0:02:50.3]} 27... e5 {[%clk 0:03:48.3]} 28.
Rf1 {[%clk 0:02:44.7]} 28... f6 {[%clk 0:03:46.1]} 29. Kf2 {[%clk 0:02:34.1]}
29... Rd3 {[%clk 0:03:44.8]} 30. Na4 {[%clk 0:02:28.2]} 30... Rd2 {[%clk
0:03:38.3]} 31. Qa3 {[%clk 0:02:27.1]} 31... Qb5 {[%clk 0:03:25.4]} 32. Re1
{[%clk 0:02:25.5]} 32... h5 {[%clk 0:03:22.3]} 33. Qe7 {[%clk 0:02:17.7]} 33...
Rcc2 {[%clk 0:03:20.9]} 34. Qe6+ {[%clk 0:02:04.4]} 34... Bf7 {[%clk 0:03:16]}
35. Qf5 {[%clk 0:02:00]} 35... Rxe2+ {[%clk 0:03:14.8]} 36. Kf1 {[%clk
0:01:57.8]} 0-1

[Event "Live Chess"]
[Site "Chess.com"]
[Date "2023.05.21"]
[Round "-"]
[White "lord_cll"]
[Black "Rusty_Bridges"]
[Result "0-1"]
[WhiteElo "1206"]
[BlackElo "1506"]
[TimeControl "300"]
[EndTime "7:54:10 PDT"]
[Termination "Rusty_Bridges won on time"]

1. e4 {[%clk 0:04:56.9]} 1... d6 {[%clk 0:04:57.5]} 2. d4 {[%clk 0:04:50.6]}
2... Nf6 {[%clk 0:04:49.6]} 3. Bd3 {[%clk 0:04:44.6]} 3... Nbd7 {[%clk
0:04:45.1]} 4. c3 {[%clk 0:04:41.4]} 4... e5 {[%clk 0:04:43.2]} 5. Nf3 {[%clk
0:04:35.3]} 5... Be7 {[%clk 0:04:40.1]} 6. Be3 {[%clk 0:04:26.3]} 6... h6 {[%clk
0:04:38.2]} 7. h3 {[%clk 0:04:24.9]} 7... c6 {[%clk 0:04:35.9]} 8. Nbd2 {[%clk
0:04:22.8]} 8... Qc7 {[%clk 0:04:35]} 9. Qc2 {[%clk 0:04:17.8]} 9... Nf8 {[%clk
0:04:32.9]} 10. Nf1 {[%clk 0:04:06.9]} 10... Ne6 {[%clk 0:04:31]} 11. Ng3 {[%clk
0:03:57.7]} 11... Nf4 {[%clk 0:04:23]} 12. Bxf4 {[%clk 0:03:53.4]} 12... exf4
{[%clk 0:04:21.7]} 13. Nf5 {[%clk 0:03:52.2]} 13... Bxf5 {[%clk 0:04:08.9]} 14.
exf5 {[%clk 0:03:47.9]} 14... O-O-O {[%clk 0:03:58.7]} 15. O-O {[%clk
0:03:45.3]} 15... g5 {[%clk 0:03:41.8]} 16. Kh2 {[%clk 0:03:22.4]} 16... g4
{[%clk 0:03:34.6]} 17. Nd2 {[%clk 0:03:10.9]} 17... gxh3 {[%clk 0:03:27.6]} 18.
Kxh3 {[%clk 0:02:23.2]} 18... Rdg8 {[%clk 0:03:19]} 19. f3 {[%clk 0:02:14.4]}
19... Rg3+ {[%clk 0:03:12.2]} 20. Kh2 {[%clk 0:02:12.4]} 20... Rhg8 {[%clk
0:03:09.7]} 21. Rf2 {[%clk 0:01:54.5]} 21... Nd5 {[%clk 0:03:05]} 22. Ne4 {[%clk
0:01:48.9]} 22... Ne3 {[%clk 0:02:55.9]} 23. Qd2 {[%clk 0:01:15.7]} 23... R3g7
{[%clk 0:02:45.6]} 24. Rg1 {[%clk 0:00:55]} 24... Bh4 {[%clk 0:02:34.9]} 25. Re2
{[%clk 0:00:45.9]} 25... d5 {[%clk 0:02:29.6]} 26. Nc5 {[%clk 0:00:35.1]} 26...
Bg3+ {[%clk 0:02:04.1]} 27. Kh1 {[%clk 0:00:29.7]} 27... Rg5 {[%clk 0:02:01.4]}
28. Rc1 {[%clk 0:00:19.6]} 28... Rh5+ {[%clk 0:01:58.5]} 29. Kg1 {[%clk
0:00:18.6]} 29... Bh2+ {[%clk 0:01:53.1]} 30. Kf2 {[%clk 0:00:16.7]} 30... Rxg2+
{[%clk 0:01:51.2]} 31. Ke1 {[%clk 0:00:13.9]} 31... Bg3+ {[%clk 0:01:46.9]} 32.
Rf2 {[%clk 0:00:08]} 32... Rg1+ {[%clk 0:01:44.8]} 33. Ke2 {[%clk 0:00:05.5]}
33... Bxf2 {[%clk 0:01:26.6]} 0-1

[Event "Live Chess"]
[Site "Chess.com"]
[Date "2023.05.21"]
[Round "-"]
[White "WelshTiger"]
[Black "WilliamofOrange16th"]
[Result "1-0"]
[WhiteElo "2340"]
[BlackElo "1866"]
[TimeControl "300"]
[EndTime "7:54:13 PDT"]
[Termination "WelshTiger won by checkmate"]

1. e4 {[%clk 0:04:58.9]} 1... d6 {[%clk 0:04:49.6]} 2. d4 {[%clk 0:04:54.8]}
2... Nf6 {[%clk 0:04:47.8]} 3. Nc3 {[%clk 0:04:52.6]} 3... Nbd7 {[%clk
0:04:46.1]} 4. Nf3 {[%clk 0:04:49.8]} 4... e5 {[%clk 0:04:45.1]} 5. g4 {[%clk
0:04:49.2]} 5... Nxg4 {[%clk 0:04:43.4]} 6. Rg1 {[%clk 0:04:48.2]} 6... Ngf6
{[%clk 0:04:42.1]} 7. Bc4 {[%clk 0:04:46.8]} 7... h6 {[%clk 0:04:41.2]} 8. Be3
{[%clk 0:04:44.1]} 8... c6 {[%clk 0:04:40.5]} 9. dxe5 {[%clk 0:04:43.7]} 9...
dxe5 {[%clk 0:04:39]} 10. Qd3 {[%clk 0:04:43]} 10... Qa5 {[%clk 0:04:27.3]} 11.
O-O-O {[%clk 0:04:41]} 11... b5 {[%clk 0:04:25.3]} 12. Bb3 {[%clk 0:04:40.4]}
12... Ba6 {[%clk 0:04:15.8]} 13. Nd2 {[%clk 0:04:39]} 13... c5 {[%clk
0:04:08.6]} 14. Nd5 {[%clk 0:04:31.2]} 14... c4 {[%clk 0:03:59.4]} 15. Nxc4
{[%clk 0:04:05.5]} 15... bxc4 {[%clk 0:03:56.2]} 16. Bxc4 {[%clk 0:04:05.1]}
16... Bxc4 {[%clk 0:03:53.4]} 17. Qxc4 {[%clk 0:04:04.1]} 17... Nxd5 {[%clk
0:03:44.2]} 18. Rxd5 {[%clk 0:04:00.5]} 18... Qb4 {[%clk 0:03:31.4]} 19. Qc6
{[%clk 0:03:55]} 19... Rd8 {[%clk 0:03:28]} 20. Rgd1 {[%clk 0:03:52.8]} 20...
Qe7 {[%clk 0:03:17.7]} 21. Bc5 {[%clk 0:03:34.3]} 21... Qe6 {[%clk 0:03:16.8]}
22. Bd6 {[%clk 0:03:21.9]} 22... f6 {[%clk 0:03:04.4]} 23. Qc7 {[%clk
0:03:13.4]} 23... Be7 {[%clk 0:02:37.2]} 24. Qxa7 {[%clk 0:02:59.1]} 24... Rf8
{[%clk 0:02:33.5]} 25. Bc7 {[%clk 0:02:52.6]} 25... Rc8 {[%clk 0:02:29.3]} 26.
Rxd7 {[%clk 0:02:50.5]} 26... Qxd7 {[%clk 0:02:28.6]} 27. Rxd7 {[%clk
0:02:48.8]} 27... Kxd7 {[%clk 0:02:28.5]} 28. Ba5+ {[%clk 0:02:46.1]} 28... Ke6
{[%clk 0:02:24]} 29. Qe3 {[%clk 0:02:45.1]} 29... Rc6 {[%clk 0:02:18.7]} 30. a3
{[%clk 0:02:28.8]} 30... Rfc8 {[%clk 0:02:17.4]} 31. c3 {[%clk 0:02:28.3]} 31...
Bc5 {[%clk 0:02:14.9]} 32. Qh3+ {[%clk 0:02:26.4]} 32... Ke7 {[%clk 0:02:07.1]}
33. f3 {[%clk 0:02:22.2]} 33... Be3+ {[%clk 0:02:03.4]} 34. Kc2 {[%clk
0:02:21.4]} 34... g6 {[%clk 0:01:59.6]} 35. Bb4+ {[%clk 0:02:15.8]} 35... Ke8
{[%clk 0:01:50.3]} 36. Qg4 {[%clk 0:02:09.7]} 36... Bg5 {[%clk 0:01:47.9]} 37.
h4 {[%clk 0:02:07.8]} 37... h5 {[%clk 0:01:47.3]} 38. Qg3 {[%clk 0:02:07.2]}
38... Bf4 {[%clk 0:01:43]} 39. Qxg6+ {[%clk 0:02:06.3]} 39... Kd7 {[%clk
0:01:41.8]} 40. Qf7+ {[%clk 0:02:04.2]} 40... Kd8 {[%clk 0:01:40.9]} 41. Qe7#
{[%clk 0:02:03.3]} 1-0

[Event "Live Chess"]
[Site "Chess.com"]
[Date "2023.05.21"]
[Round "-"]
[White "manthanit"]
[Black "Bob2pen"]
[Result "0-1"]
[WhiteElo "1100"]
[BlackElo "1880"]
[TimeControl "300"]
[EndTime "7:54:18 PDT"]
[Termination "Bob2pen won by checkmate"]

1. e4 {[%clk 0:04:59.5]} 1... e6 {[%clk 0:04:57.6]} 2. Nf3 {[%clk 0:04:58.8]}
2... d5 {[%clk 0:04:56.5]} 3. exd5 {[%clk 0:04:58.5]} 3... exd5 {[%clk
0:04:55.3]} 4. Bb5+ {[%clk 0:04:57.1]} 4... c6 {[%clk 0:04:53.4]} 5. Bd3 {[%clk
0:04:54.5]} 5... Bd6 {[%clk 0:04:50.9]} 6. c4 {[%clk 0:04:52.6]} 6... Nf6 {[%clk
0:04:48.8]} 7. cxd5 {[%clk 0:04:51.4]} 7... Nxd5 {[%clk 0:04:47.7]} 8. Nc3
{[%clk 0:04:48.8]} 8... Nf4 {[%clk 0:04:43.8]} 9. Bc2 {[%clk 0:04:46]} 9...
Nxg2+ {[%clk 0:04:42]} 10. Kf1 {[%clk 0:04:40.5]} 10... Bh3 {[%clk 0:04:40.4]}
11. Kg1 {[%clk 0:04:38.4]} 11... Qf6 {[%clk 0:04:31.8]} 12. Qe2+ {[%clk
0:04:30.2]} 12... Kf8 {[%clk 0:04:25.9]} 13. d4 {[%clk 0:04:29.2]} 13... Nf4
{[%clk 0:04:16.8]} 14. Ne4 {[%clk 0:04:16.4]} 14... Nxe2# {[%clk 0:04:14.5]} 0-1

[Event "Live Chess"]
[Site "Chess.com"]
[Date "2023.05.21"]
[Round "-"]
[White "Dhaydon19"]
[Black "chessfiction"]
[Result "1-0"]
[WhiteElo "2693"]
[BlackElo "2296"]
[TimeControl "300"]
[EndTime "7:54:23 PDT"]
[Termination "Dhaydon19 won by resignation"]

1. d4 {[%clk 0:04:54]} 1... d5 {[%clk 0:04:58.3]} 2. Nf3 {[%clk 0:04:53.4]} 2...
c6 {[%clk 0:04:57]} 3. g3 {[%clk 0:04:52.9]} 3... Nf6 {[%clk 0:04:55]} 4. Bg2
{[%clk 0:04:52.5]} 4... h5 {[%clk 0:04:54.1]} 5. O-O {[%clk 0:04:52.1]} 5... h4
{[%clk 0:04:53.4]} 6. Nxh4 {[%clk 0:04:51.2]} 6... Ne4 {[%clk 0:04:52.1]} 7. Nf3
{[%clk 0:04:50.1]} 7... Bh3 {[%clk 0:04:50.3]} 8. Bxh3 {[%clk 0:04:48.8]} 8...
Rxh3 {[%clk 0:04:50.2]} 9. Kg2 {[%clk 0:04:48.3]} 9... Rh8 {[%clk 0:04:46.9]}
10. h4 {[%clk 0:04:46]} 10... Nd7 {[%clk 0:04:44.9]} 11. Nbd2 {[%clk 0:04:45.4]}
11... Ndf6 {[%clk 0:04:43.7]} 12. Nxe4 {[%clk 0:04:43.9]} 12... dxe4 {[%clk
0:04:41.4]} 13. Ne5 {[%clk 0:04:42.3]} 13... e6 {[%clk 0:04:40.6]} 14. Bg5
{[%clk 0:04:40.8]} 14... Bd6 {[%clk 0:04:39.4]} 15. Nc4 {[%clk 0:04:37]} 15...
Bc7 {[%clk 0:04:30.9]} 16. c3 {[%clk 0:04:35.7]} 16... Qd5 {[%clk 0:04:29]} 17.
Ne3 {[%clk 0:04:34.5]} 17... Qd7 {[%clk 0:04:22.9]} 18. Qc2 {[%clk 0:04:33.1]}
18... O-O-O {[%clk 0:04:20.9]} 19. Rh1 {[%clk 0:04:28]} 19... Rdg8 {[%clk
0:04:15.8]} 20. Bxf6 {[%clk 0:04:21.9]} 20... gxf6 {[%clk 0:04:14.2]} 21. Qxe4
{[%clk 0:04:21.1]} 21... f5 {[%clk 0:04:13.1]} 22. Qf3 {[%clk 0:04:20.7]} 22...
f4 {[%clk 0:04:12.3]} 23. Nf1 {[%clk 0:04:19]} 23... fxg3 {[%clk 0:04:03.4]} 24.
Nxg3 {[%clk 0:04:17.1]} 24... f5 {[%clk 0:03:42.5]} 25. e3 {[%clk 0:04:15.9]}
25... Rg4 {[%clk 0:03:31.6]} 26. Rh3 {[%clk 0:04:11.2]} 26... Rhg8 {[%clk
0:03:26.8]} 27. Kf1 {[%clk 0:03:57.6]} 27... f4 {[%clk 0:03:18.8]} 28. exf4
{[%clk 0:03:42.2]} 28... Rxf4 {[%clk 0:03:14.7]} 29. Qe3 {[%clk 0:03:41]} 29...
Rgf8 {[%clk 0:03:03.4]} 30. Re1 {[%clk 0:03:35.5]} 30... Qd5 {[%clk 0:02:55.4]}
31. Qxe6+ {[%clk 0:03:30.9]} 31... Qxe6 {[%clk 0:02:54.5]} 32. Rxe6 {[%clk
0:03:30.2]} 32... Rxf2+ {[%clk 0:02:54.3]} 33. Kg1 {[%clk 0:03:29.7]} 33... Rxb2
{[%clk 0:02:44.8]} 34. Ne4 {[%clk 0:03:28.5]} 34... Rg8+ {[%clk 0:02:18.2]} 35.
Kf1 {[%clk 0:03:27.2]} 35... Bh2 {[%clk 0:02:10.9]} 36. Ng5 {[%clk 0:03:18.8]}
36... Rf8+ {[%clk 0:02:08.7]} 37. Rf3 {[%clk 0:03:16.8]} 37... Rxf3+ {[%clk
0:02:04.5]} 38. Nxf3 {[%clk 0:03:15.8]} 38... Rxa2 {[%clk 0:02:03.8]} 39. h5
{[%clk 0:03:12]} 39... Bf4 {[%clk 0:02:02]} 40. h6 {[%clk 0:03:07]} 40... Bxh6
{[%clk 0:02:01]} 41. Rxh6 {[%clk 0:03:05.8]} 41... Rc2 {[%clk 0:01:59.6]} 42.
Ne5 {[%clk 0:03:01.9]} 42... Rxc3 {[%clk 0:01:58.6]} 43. Ke2 {[%clk 0:03:00.8]}
43... a5 {[%clk 0:01:56.6]} 44. Rh8+ {[%clk 0:02:59.1]} 44... Kc7 {[%clk
0:01:55.1]} 45. Rh7+ {[%clk 0:02:58.7]} 45... Kc8 {[%clk 0:01:52.9]} 46. Kd2
{[%clk 0:02:58]} 46... Rg3 {[%clk 0:01:47]} 47. Nc4 {[%clk 0:02:56]} 47... Kb8
{[%clk 0:01:37.8]} 48. Nxa5 {[%clk 0:02:54.6]} 48... Rb3 {[%clk 0:01:36.7]} 49.
Nxb3 {[%clk 0:02:53.2]} 1-0

[Event "Live Chess"]
[Site "Chess.com"]
[Date "2023.05.21"]
[Round "-"]
[White "EdenHazard8"]
[Black "JoshMcK"]
[Result "1-0"]
[WhiteElo "1926"]
[BlackElo "1561"]
[TimeControl "300"]
[EndTime "7:54:23 PDT"]
[Termination "EdenHazard8 won by resignation"]

1. e4 {[%clk 0:04:59.1]} 1... d6 {[%clk 0:04:58.2]} 2. d4 {[%clk 0:04:57.3]}
2... Nf6 {[%clk 0:04:57.3]} 3. Nc3 {[%clk 0:04:56.9]} 3... g6 {[%clk 0:04:56.5]}
4. f3 {[%clk 0:04:54.7]} 4... Bg7 {[%clk 0:04:55.7]} 5. Be3 {[%clk 0:04:54.6]}
5... O-O {[%clk 0:04:54.9]} 6. Qd2 {[%clk 0:04:54.1]} 6... c6 {[%clk 0:04:48.7]}
7. O-O-O {[%clk 0:04:53.3]} 7... a5 {[%clk 0:04:46.8]} 8. h4 {[%clk 0:04:51.5]}
8... b5 {[%clk 0:04:45.6]} 9. Bh6 {[%clk 0:04:50.6]} 9... b4 {[%clk 0:04:42.5]}
10. Nb1 {[%clk 0:04:48]} 10... Bxh6 {[%clk 0:04:24.3]} 11. Qxh6 {[%clk
0:04:45.7]} 11... a4 {[%clk 0:04:23.6]} 12. h5 {[%clk 0:04:41.7]} 12... b3
{[%clk 0:04:19.2]} 13. cxb3 {[%clk 0:04:35.2]} 13... axb3 {[%clk 0:04:04.8]} 14.
a3 {[%clk 0:04:33.6]} 14... c5 {[%clk 0:03:59.5]} 15. hxg6 {[%clk 0:04:29.7]}
15... fxg6 {[%clk 0:03:57.3]} 16. d5 {[%clk 0:04:28.4]} 16... Qc7 {[%clk
0:03:43.1]} 17. Nh3 {[%clk 0:04:19]} 17... Na6 {[%clk 0:03:40.3]} 18. Ng5 {[%clk
0:04:10]} 18... Nb4 {[%clk 0:03:31.3]} 19. Nxh7 {[%clk 0:04:05.2]} 19... Na2+
{[%clk 0:03:29.6]} 20. Kd2 {[%clk 0:04:02.5]} 20... Qa5+ {[%clk 0:03:18.3]} 21.
Nc3 {[%clk 0:03:59.3]} 21... Bg4 {[%clk 0:02:46.5]} 22. Nxf6+ {[%clk 0:03:54.9]}
1-0